[Event "Early-Titled-Tuesday-Blitz-February-20-2024"]
[Site "Chess.com"]
[Date "2024.02.20"]
[Round "10"]
[White "Barmen_EV"]
[Black "Leonid_Starozhilov"]
[Result "0-1"]
[WhiteElo "2512"]
[BlackElo "2685"]
[TimeControl "180+1"]
[EndTime "9:59:43 PST"]
[Termination "Leonid_Starozhilov won by checkmate"]

1. e4 {[%clk 0:03:00.9]} 1... g6 {[%clk 0:02:58.9]} 2. d4 {[%clk 0:03:01.1]}
2... Bg7 {[%clk 0:02:59.6]} 3. Nc3 {[%clk 0:03:00.8]} 3... d6 {[%clk 0:03:00.3]}
4. h4 {[%clk 0:03:00.6]} 4... h5 {[%clk 0:03:00.1]} 5. Nf3 {[%clk 0:03:00.1]}
5... Bg4 {[%clk 0:03:00.4]} 6. Be2 {[%clk 0:03:00]} 6... Bxf3 {[%clk 0:03:00.6]}
7. Bxf3 {[%clk 0:02:59.9]} 7... e6 {[%clk 0:03:01.3]} 8. Be3 {[%clk 0:02:59]}
8... Nc6 {[%clk 0:03:01.4]} 9. Qd2 {[%clk 0:02:59]} 9... Nf6 {[%clk 0:03:00]}
10. O-O-O {[%clk 0:02:58]} 10... Ng4 {[%clk 0:02:57.5]} 11. Bxg4 {[%clk
0:02:56]} 11... hxg4 {[%clk 0:02:57.6]} 12. Bg5 {[%clk 0:02:56.3]} 12... Qd7
{[%clk 0:02:55.6]} 13. d5 {[%clk 0:02:53.4]} 13... Ne5 {[%clk 0:02:55.8]} 14.
Bf4 {[%clk 0:02:42.7]} 14... O-O-O {[%clk 0:02:44.6]} 15. Bxe5 {[%clk
0:02:36.4]} 15... Bxe5 {[%clk 0:02:34.2]} 16. Kb1 {[%clk 0:02:32.7]} 16... Kb8
{[%clk 0:02:33.6]} 17. Ne2 {[%clk 0:02:27.2]} 17... Qb5 {[%clk 0:02:15.5]} 18.
Nd4 {[%clk 0:02:23.2]} 18... Qb6 {[%clk 0:02:11.8]} 19. c3 {[%clk 0:02:13.9]}
19... exd5 {[%clk 0:02:09.5]} 20. exd5 {[%clk 0:02:12.7]} 20... Rde8 {[%clk
0:02:02.1]} 21. Nb3 {[%clk 0:02:07.4]} 21... a5 {[%clk 0:01:51.2]} 22. g3 {[%clk
0:01:57.5]} 22... f5 {[%clk 0:01:36.9]} 23. Rhe1 {[%clk 0:01:54.9]} 23... Ref8
{[%clk 0:01:31.7]} 24. c4 {[%clk 0:01:29.4]} 24... a4 {[%clk 0:01:23.8]} 25. c5
{[%clk 0:01:28.8]} 25... Qb5 {[%clk 0:01:07.4]} 26. Nd4 {[%clk 0:01:19.7]} 26...
Qxc5 {[%clk 0:01:03.4]} 27. Ne6 {[%clk 0:01:18.1]} 27... Qb6 {[%clk 0:00:58]}
28. Nxf8 {[%clk 0:01:17.6]} 28... Rxf8 {[%clk 0:00:58.9]} 29. a3 {[%clk
0:01:14.7]} 29... f4 {[%clk 0:00:59.1]} 30. gxf4 {[%clk 0:01:02.5]} 30... Rxf4
{[%clk 0:01:00]} 31. Re2 {[%clk 0:00:56.6]} 31... Rf3 {[%clk 0:00:50.6]} 32. Qb4
{[%clk 0:00:38.1]} 32... Qxb4 {[%clk 0:00:28.3]} 33. axb4 {[%clk 0:00:38.1]}
33... Rb3 {[%clk 0:00:29]} 34. Ka2 {[%clk 0:00:30.4]} 34... Rxb4 {[%clk
0:00:29.4]} 35. Rc2 {[%clk 0:00:21.8]} 35... Rf4 {[%clk 0:00:20.2]} 36. Rdc1
{[%clk 0:00:20.7]} 36... Rf7 {[%clk 0:00:16.4]} 37. Ka3 {[%clk 0:00:21]} 37...
Bd4 {[%clk 0:00:10.4]} 38. Rf1 {[%clk 0:00:16.1]} 38... b5 {[%clk 0:00:07.7]}
39. Kb4 {[%clk 0:00:15.8]} 39... Kb7 {[%clk 0:00:04.8]} 40. Kxb5 {[%clk
0:00:15.7]} 40... Rf4 {[%clk 0:00:04.9]} 41. Rc4 {[%clk 0:00:09.5]} 41... g3
{[%clk 0:00:05.5]} 42. Rxd4 {[%clk 0:00:04.8]} 42... g2 {[%clk 0:00:02.8]} 43.
Rg1 {[%clk 0:00:03.7]} 43... Rxd4 {[%clk 0:00:03.1]} 44. Rxg2 {[%clk 0:00:04.5]}
44... Rxd5+ {[%clk 0:00:01.9]} 45. Kxa4 {[%clk 0:00:05.2]} 45... Rd4+ {[%clk
0:00:02.5]} 46. Ka3 {[%clk 0:00:05.9]} 46... Rxh4 {[%clk 0:00:03.4]} 47. Rxg6
{[%clk 0:00:06.3]} 47... Rf4 {[%clk 0:00:04.2]} 48. Rg2 {[%clk 0:00:07]} 48...
c5 {[%clk 0:00:04.2]} 49. Kb3 {[%clk 0:00:07.2]} 49... Kc6 {[%clk 0:00:04.7]}
50. Kc3 {[%clk 0:00:07.7]} 50... Rf3+ {[%clk 0:00:05.3]} 51. Kd2 {[%clk
0:00:07.5]} 51... d5 {[%clk 0:00:05.8]} 52. Rg6+ {[%clk 0:00:04.4]} 52... Kb5
{[%clk 0:00:06.3]} 53. Ke2 {[%clk 0:00:02.1]} 53... Rb3 {[%clk 0:00:06.1]} 54.
Rg8 {[%clk 0:00:03]} 54... Rxb2+ {[%clk 0:00:06.2]} 55. Kf3 {[%clk 0:00:03.6]}
55... Kc4 {[%clk 0:00:06.2]} 56. Kg3 {[%clk 0:00:03.6]} 56... Rb1 {[%clk
0:00:06]} 57. Kg2 {[%clk 0:00:03.9]} 57... d4 {[%clk 0:00:06.1]} 58. f4 {[%clk
0:00:04.5]} 58... d3 {[%clk 0:00:06.7]} 59. Rd8 {[%clk 0:00:03.7]} 59... Kc3
{[%clk 0:00:06.8]} 60. f5 {[%clk 0:00:02.7]} 60... d2 {[%clk 0:00:07.2]} 61. f6
{[%clk 0:00:02.2]} 61... d1=Q {[%clk 0:00:07.6]} 62. Rxd1 {[%clk 0:00:02.7]}
62... Rxd1 {[%clk 0:00:08.5]} 63. f7 {[%clk 0:00:03.6]} 63... Rd8 {[%clk
0:00:08.8]} 64. Kf3 {[%clk 0:00:04.5]} 64... Rf8 {[%clk 0:00:09.6]} 65. Ke4
{[%clk 0:00:05.4]} 65... Rxf7 {[%clk 0:00:10.2]} 66. Ke5 {[%clk 0:00:06.3]}
66... c4 {[%clk 0:00:10.7]} 67. Kd6 {[%clk 0:00:07.2]} 67... Rf3 {[%clk
0:00:11.2]} 68. Kd5 {[%clk 0:00:07.7]} 68... Rd3+ {[%clk 0:00:12.1]} 69. Ke4
{[%clk 0:00:08.6]} 69... Kd2 {[%clk 0:00:12.5]} 70. Kf4 {[%clk 0:00:08.6]} 70...
c3 {[%clk 0:00:13.4]} 71. Ke4 {[%clk 0:00:09.5]} 71... c2 {[%clk 0:00:14.3]} 72.
Kf4 {[%clk 0:00:10.4]} 72... c1=Q {[%clk 0:00:14.9]} 73. Ke4 {[%clk 0:00:11.3]}
73... Qe1+ {[%clk 0:00:15.4]} 74. Kf4 {[%clk 0:00:11.5]} 74... Qe3+ {[%clk
0:00:15.7]} 75. Kg4 {[%clk 0:00:12.4]} 75... Rd4+ {[%clk 0:00:16.2]} 76. Kh5
{[%clk 0:00:13.3]} 76... Qe5+ {[%clk 0:00:16.5]} 77. Kg6 {[%clk 0:00:13.3]}
77... Rd6+ {[%clk 0:00:17.3]} 78. Kh7 {[%clk 0:00:14.2]} 78... Qe7+ {[%clk
0:00:17.1]} 79. Kg8 {[%clk 0:00:15.1]} 79... Rd8# {[%clk 0:00:18]} 0-1

[Event "Early-Titled-Tuesday-Blitz-February-20-2024"]
[Site "Chess.com"]
[Date "2024.02.20"]
[Round "10"]
[White "RantomOpening"]
[Black "baki83"]
[Result "0-1"]
[WhiteElo "2550"]
[BlackElo "2866"]
[TimeControl "180+1"]
[EndTime "9:59:56 PST"]
[Termination "baki83 won by resignation"]

1. c4 {[%clk 0:03:00]} 1... e5 {[%clk 0:02:59.4]} 2. Nc3 {[%clk 0:03:00]} 2...
Nf6 {[%clk 0:02:59.2]} 3. Nf3 {[%clk 0:03:00.4]} 3... e4 {[%clk 0:02:59.7]} 4.
Ng5 {[%clk 0:03:00.6]} 4... c6 {[%clk 0:03:00.2]} 5. Qa4 {[%clk 0:03:00.5]} 5...
Qe7 {[%clk 0:02:52.5]} 6. c5 {[%clk 0:02:42.6]} 6... e3 {[%clk 0:02:44.2]} 7.
fxe3 {[%clk 0:02:34.5]} 7... Qxc5 {[%clk 0:02:39.7]} 8. Nge4 {[%clk 0:02:32.2]}
8... Nxe4 {[%clk 0:02:37.7]} 9. Qxe4+ {[%clk 0:02:31.6]} 9... Be7 {[%clk
0:02:35.7]} 10. d4 {[%clk 0:02:21.4]} 10... Qg5 {[%clk 0:02:17.6]} 11. Qd3
{[%clk 0:02:01.1]} 11... Qg6 {[%clk 0:02:12.5]} 12. Qxg6 {[%clk 0:01:56.6]}
12... hxg6 {[%clk 0:02:12.4]} 13. e4 {[%clk 0:01:57.1]} 13... d6 {[%clk
0:02:13]} 14. Bf4 {[%clk 0:01:54.7]} 14... Na6 {[%clk 0:02:09.6]} 15. e3 {[%clk
0:01:53.1]} 15... Nc7 {[%clk 0:02:09.1]} 16. e5 {[%clk 0:01:34.7]} 16... d5
{[%clk 0:02:04.6]} 17. Bd3 {[%clk 0:01:33.2]} 17... Bh4+ {[%clk 0:02:03.1]} 18.
Kd2 {[%clk 0:01:30.2]} 18... g5 {[%clk 0:02:01.5]} 19. Bg3 {[%clk 0:01:30.2]}
19... Be6 {[%clk 0:01:40.6]} 20. b4 {[%clk 0:01:29]} 20... a6 {[%clk 0:01:40.4]}
21. a4 {[%clk 0:01:22.3]} 21... Bxg3 {[%clk 0:01:38.9]} 22. hxg3 {[%clk
0:01:22.3]} 22... Ke7 {[%clk 0:01:39.4]} 23. a5 {[%clk 0:01:21]} 23... Rh6
{[%clk 0:01:36.6]} 24. Rxh6 {[%clk 0:01:20.4]} 24... gxh6 {[%clk 0:01:36.9]} 25.
Na4 {[%clk 0:01:20.8]} 25... Rh8 {[%clk 0:01:35.2]} 26. Nc5 {[%clk 0:01:20.3]}
26... Bc8 {[%clk 0:01:35.1]} 27. g4 {[%clk 0:01:11.5]} 27... Ne6 {[%clk
0:01:33.2]} 28. Bf5 {[%clk 0:00:56.5]} 28... h5 {[%clk 0:01:14.9]} 29. Rh1
{[%clk 0:00:47.8]} 29... h4 {[%clk 0:01:07.9]} 30. Ke2 {[%clk 0:00:38.2]} 30...
Bd7 {[%clk 0:00:53.8]} 31. Kf2 {[%clk 0:00:19.4]} 31... Rb8 {[%clk 0:00:51.4]}
32. g3 {[%clk 0:00:17]} 32... b6 {[%clk 0:00:32.8]} 33. Nxa6 {[%clk 0:00:13.9]}
33... Ra8 {[%clk 0:00:32.5]} 34. Bxe6 {[%clk 0:00:13.8]} 34... fxe6 {[%clk
0:00:23.4]} 35. Nc7 {[%clk 0:00:09.1]} 35... Rb8 {[%clk 0:00:23.4]} 36. Na6
{[%clk 0:00:06.2]} 36... Ra8 {[%clk 0:00:19.7]} 37. Nc7 {[%clk 0:00:06.3]} 37...
Rf8+ {[%clk 0:00:14.6]} 38. Kg2 {[%clk 0:00:05.1]} 38... bxa5 {[%clk 0:00:14.2]}
39. bxa5 {[%clk 0:00:05.4]} 39... Kd8 {[%clk 0:00:14.6]} 40. Na6 {[%clk
0:00:05.4]} 40... Be8 {[%clk 0:00:10.3]} 41. Nc5 {[%clk 0:00:05.3]} 41... Ke7
{[%clk 0:00:10.8]} 42. a6 {[%clk 0:00:05.7]} 42... Bg6 {[%clk 0:00:11]} 43. a7
{[%clk 0:00:05.5]} 43... Ra8 {[%clk 0:00:11]} 44. Ra1 {[%clk 0:00:06]} 44...
hxg3 {[%clk 0:00:09.3]} 45. Kxg3 {[%clk 0:00:06.9]} 45... Bf7 {[%clk 0:00:08.9]}
46. Kf3 {[%clk 0:00:06.6]} 46... Kd8 {[%clk 0:00:09.3]} 47. Nb7+ {[%clk
0:00:06.3]} 47... Kc7 {[%clk 0:00:09.7]} 48. Nd6 {[%clk 0:00:07.2]} 48... Bg6
{[%clk 0:00:10.1]} 49. Ra3 {[%clk 0:00:03.8]} 49... Bc2 {[%clk 0:00:08.6]} 50.
Ke2 {[%clk 0:00:03.7]} 50... Bg6 {[%clk 0:00:08.3]} 51. Kd2 {[%clk 0:00:04.1]}
51... Bb1 {[%clk 0:00:05.1]} 52. Kc3 {[%clk 0:00:04.4]} 52... Bg6 {[%clk
0:00:04.8]} 53. Kb4 {[%clk 0:00:04.9]} 53... Kb6 {[%clk 0:00:05.4]} 54. Kc3
{[%clk 0:00:04.5]} 54... Kc7 {[%clk 0:00:05.3]} 55. Ra6 {[%clk 0:00:04.5]} 55...
Bb1 {[%clk 0:00:04.7]} 56. Kb4 {[%clk 0:00:04.7]} 56... Bd3 {[%clk 0:00:03.4]}
57. Ra3 {[%clk 0:00:05.2]} 57... Be2 {[%clk 0:00:03.3]} 58. Kc5 {[%clk
0:00:06.1]} 58... Bxg4 {[%clk 0:00:03.7]} 59. Ra6 {[%clk 0:00:06]} 59... Kd7
{[%clk 0:00:04]} 60. Ra5 {[%clk 0:00:05.2]} 60... Kc7 {[%clk 0:00:03.6]} 61. Ra6
{[%clk 0:00:05.3]} 61... Be2 {[%clk 0:00:03.9]} 62. Ra2 {[%clk 0:00:04.7]} 62...
Bd3 {[%clk 0:00:03.4]} 63. Ra5 {[%clk 0:00:03.3]} 63... g4 {[%clk 0:00:03.7]}
64. Ra2 {[%clk 0:00:03.4]} 64... g3 {[%clk 0:00:02.6]} 65. Ra1 {[%clk
0:00:02.2]} 65... g2 {[%clk 0:00:02.6]} 66. Rg1 {[%clk 0:00:03.1]} 66... Bf1
{[%clk 0:00:03]} 67. Kb4 {[%clk 0:00:01.4]} 67... Rxa7 {[%clk 0:00:03.4]} 68.
Kc3 {[%clk 0:00:02.3]} 68... Ra2 {[%clk 0:00:03.8]} 69. e4 {[%clk 0:00:02.5]}
69... dxe4 {[%clk 0:00:04]} 70. Nxe4 {[%clk 0:00:03.4]} 70... Ra3+ {[%clk
0:00:04.4]} 71. Kd2 {[%clk 0:00:03.7]} 71... Rh3 {[%clk 0:00:04.9]} 72. Nf2
{[%clk 0:00:03.4]} 72... Ra3 {[%clk 0:00:05.2]} 73. Ke1 {[%clk 0:00:03.4]} 73...
Re3+ {[%clk 0:00:05.1]} 74. Kd2 {[%clk 0:00:03.8]} 74... Re2+ {[%clk 0:00:05.5]}
75. Kd1 {[%clk 0:00:04.6]} 75... Rxf2 {[%clk 0:00:06.4]} 76. Rxg2 {[%clk
0:00:05]} 76... Rxg2 {[%clk 0:00:06.5]} 0-1

[Event "Early-Titled-Tuesday-Blitz-February-20-2024"]
[Site "Chess.com"]
[Date "2024.02.20"]
[Round "10"]
[White "Licancabur"]
[Black "CM_rui"]
[Result "1-0"]
[WhiteElo "2445"]
[BlackElo "2599"]
[TimeControl "180+1"]
[EndTime "10:00:15 PST"]
[Termination "Licancabur won by checkmate"]

1. d4 {[%clk 0:03:00]} 1... Nf6 {[%clk 0:02:59.8]} 2. Bg5 {[%clk 0:02:59.7]}
2... d5 {[%clk 0:02:54.4]} 3. e3 {[%clk 0:02:59.2]} 3... c5 {[%clk 0:02:54.2]}
4. Bxf6 {[%clk 0:02:58.4]} 4... gxf6 {[%clk 0:02:54.4]} 5. dxc5 {[%clk
0:02:58.4]} 5... Nc6 {[%clk 0:02:52.3]} 6. Nf3 {[%clk 0:02:56.8]} 6... e5 {[%clk
0:02:50.4]} 7. Nc3 {[%clk 0:02:56.5]} 7... Be6 {[%clk 0:02:49.2]} 8. Qd2 {[%clk
0:02:56.5]} 8... Bxc5 {[%clk 0:02:48]} 9. O-O-O {[%clk 0:02:56.3]} 9... Qa5
{[%clk 0:02:44.4]} 10. Bb5 {[%clk 0:02:23.9]} 10... a6 {[%clk 0:02:27.1]} 11.
Ba4 {[%clk 0:02:12.7]} 11... b5 {[%clk 0:02:06.8]} 12. Bb3 {[%clk 0:02:10.3]}
12... d4 {[%clk 0:01:48.1]} 13. Ne4 {[%clk 0:02:01.4]} 13... Qxd2+ {[%clk
0:01:40.4]} 14. Nfxd2 {[%clk 0:01:42.1]} 14... dxe3 {[%clk 0:01:28.1]} 15. Nxc5
{[%clk 0:01:32.8]} 15... exd2+ {[%clk 0:01:27.7]} 16. Rxd2 {[%clk 0:01:33.2]}
16... Bxb3 {[%clk 0:01:26.5]} 17. axb3 {[%clk 0:01:28]} 17... Ra7 {[%clk
0:01:13.7]} 18. Rhd1 {[%clk 0:01:18.1]} 18... a5 {[%clk 0:00:45.8]} 19. Rd6
{[%clk 0:01:12.9]} 19... Rc7 {[%clk 0:00:36]} 20. c3 {[%clk 0:00:56.7]} 20...
O-O {[%clk 0:00:27.7]} 21. Nd7 {[%clk 0:00:49.4]} 21... Rfc8 {[%clk 0:00:23.6]}
22. Nxf6+ {[%clk 0:00:47.2]} 22... Kg7 {[%clk 0:00:23.8]} 23. Nh5+ {[%clk
0:00:37.5]} 23... Kf8 {[%clk 0:00:24.1]} 24. Nf6 {[%clk 0:00:33.5]} 24... Kg7
{[%clk 0:00:19.5]} 25. Nd5 {[%clk 0:00:30.5]} 25... Rb7 {[%clk 0:00:18.2]} 26.
Kb1 {[%clk 0:00:29]} 26... a4 {[%clk 0:00:15.6]} 27. b4 {[%clk 0:00:27.8]} 27...
Nd8 {[%clk 0:00:11.2]} 28. Ne3 {[%clk 0:00:25.5]} 28... Ne6 {[%clk 0:00:11.1]}
29. Nf5+ {[%clk 0:00:23.3]} 29... Kf6 {[%clk 0:00:11.7]} 30. g4 {[%clk
0:00:22.6]} 30... h5 {[%clk 0:00:12.1]} 31. h3 {[%clk 0:00:22.6]} 31... hxg4
{[%clk 0:00:12.7]} 32. hxg4 {[%clk 0:00:23]} 32... Rg8 {[%clk 0:00:13]} 33. f3
{[%clk 0:00:22.3]} 33... Rh8 {[%clk 0:00:13.4]} 34. R6d5 {[%clk 0:00:18]} 34...
Rh3 {[%clk 0:00:12.3]} 35. Nd6 {[%clk 0:00:17.7]} 35... Rb6 {[%clk 0:00:10.2]}
36. Rxb5 {[%clk 0:00:17.1]} 36... Ra6 {[%clk 0:00:07.9]} 37. Ne4+ {[%clk
0:00:17.3]} 37... Kg7 {[%clk 0:00:07.2]} 38. Rxe5 {[%clk 0:00:16.2]} 38... Rxf3
{[%clk 0:00:07.3]} 39. Ng5 {[%clk 0:00:13.6]} 39... Nxg5 {[%clk 0:00:03.3]} 40.
Rxg5+ {[%clk 0:00:13.8]} 40... Kf6 {[%clk 0:00:04.2]} 41. Rc5 {[%clk 0:00:13.1]}
41... a3 {[%clk 0:00:04.6]} 42. Rb5 {[%clk 0:00:12.3]} 42... a2+ {[%clk
0:00:02.9]} 43. Ka1 {[%clk 0:00:11.9]} 43... Rf2 {[%clk 0:00:02.1]} 44. Ra5
{[%clk 0:00:10.8]} 44... Re6 {[%clk 0:00:02.5]} 45. Rxa2 {[%clk 0:00:08.4]}
45... Ree2 {[%clk 0:00:03.2]} 46. Rb1 {[%clk 0:00:08.3]} 46... Kg5 {[%clk
0:00:03.5]} 47. b5 {[%clk 0:00:07.9]} 47... Kxg4 {[%clk 0:00:03.9]} 48. b6
{[%clk 0:00:08.1]} 48... Rf6 {[%clk 0:00:04.5]} 49. Ra4+ {[%clk 0:00:05.2]}
49... Kg5 {[%clk 0:00:03.3]} 50. Ra5+ {[%clk 0:00:02.9]} 50... Kg6 {[%clk
0:00:03.3]} 51. Ra6 {[%clk 0:00:03.3]} 51... Ree6 {[%clk 0:00:03.9]} 52. Ka2
{[%clk 0:00:02.9]} 52... Rxb6 {[%clk 0:00:04.3]} 53. Rxb6 {[%clk 0:00:03.4]}
53... Rxb6 {[%clk 0:00:05.2]} 54. b4 {[%clk 0:00:04.1]} 54... f5 {[%clk
0:00:06]} 55. Kb3 {[%clk 0:00:04.6]} 55... f4 {[%clk 0:00:06.6]} 56. c4 {[%clk
0:00:04.5]} 56... Kf5 {[%clk 0:00:06.9]} 57. c5 {[%clk 0:00:04.8]} 57... Rb8
{[%clk 0:00:07.5]} 58. Kc4 {[%clk 0:00:04.9]} 58... Ke4 {[%clk 0:00:07.9]} 59.
b5 {[%clk 0:00:05]} 59... f3 {[%clk 0:00:08.4]} 60. c6 {[%clk 0:00:04.6]} 60...
f2 {[%clk 0:00:08.9]} 61. Kc5 {[%clk 0:00:04.8]} 61... Rg8 {[%clk 0:00:07.9]}
62. Rf1 {[%clk 0:00:03.6]} 62... Ke3 {[%clk 0:00:07.3]} 63. b6 {[%clk
0:00:03.6]} 63... Ke2 {[%clk 0:00:05.6]} 64. Rxf2+ {[%clk 0:00:03.5]} 64... Kxf2
{[%clk 0:00:06.5]} 65. b7 {[%clk 0:00:04]} 65... Ke3 {[%clk 0:00:06.6]} 66. c7
{[%clk 0:00:04.1]} 66... Rg5+ {[%clk 0:00:07]} 67. Kc4 {[%clk 0:00:04.3]} 67...
Rg4+ {[%clk 0:00:06]} 68. Kc3 {[%clk 0:00:04.5]} 68... Rg1 {[%clk 0:00:05.9]}
69. c8=Q {[%clk 0:00:04.1]} 69... Rc1+ {[%clk 0:00:06.4]} 70. Kb2 {[%clk
0:00:04.6]} 70... Rd1 {[%clk 0:00:05.5]} 71. Qe6+ {[%clk 0:00:04.5]} 71... Kd2
{[%clk 0:00:05.3]} 72. Qd5+ {[%clk 0:00:04.8]} 72... Ke2 {[%clk 0:00:04.2]} 73.
Qxd1+ {[%clk 0:00:05.3]} 73... Kf2 {[%clk 0:00:04.9]} 74. b8=Q {[%clk
0:00:05.8]} 74... Kg2 {[%clk 0:00:05.3]} 75. Qg8+ {[%clk 0:00:05.1]} 75... Kh3
{[%clk 0:00:06.2]} 76. Qh5# {[%clk 0:00:05]} 1-0

[Event "Early-Titled-Tuesday-Blitz-February-20-2024"]
[Site "Chess.com"]
[Date "2024.02.20"]
[Round "10"]
[White "Ordekalog"]
[Black "NastyaHn"]
[Result "1-0"]
[WhiteElo "2622"]
[BlackElo "2448"]
[TimeControl "180+1"]
[EndTime "10:00:19 PST"]
[Termination "Ordekalog won by resignation"]

1. e4 {[%clk 0:03:00.9]} 1... e6 {[%clk 0:02:58.7]} 2. Bb5 {[%clk 0:03:00.1]}
2... c6 {[%clk 0:02:57.5]} 3. Ba4 {[%clk 0:02:59.8]} 3... d5 {[%clk 0:02:55.5]}
4. d3 {[%clk 0:03:00.2]} 4... Qa5+ {[%clk 0:02:51]} 5. c3 {[%clk 0:03:00]} 5...
Nf6 {[%clk 0:02:46.2]} 6. Nd2 {[%clk 0:02:57.8]} 6... Be7 {[%clk 0:02:40.7]} 7.
Ngf3 {[%clk 0:02:57]} 7... Qc7 {[%clk 0:02:35.5]} 8. O-O {[%clk 0:02:56.1]} 8...
O-O {[%clk 0:02:32.2]} 9. Qe2 {[%clk 0:02:53.4]} 9... Rd8 {[%clk 0:02:32.1]} 10.
Re1 {[%clk 0:02:52.6]} 10... b6 {[%clk 0:02:26.7]} 11. e5 {[%clk 0:02:48.9]}
11... Nfd7 {[%clk 0:02:26.3]} 12. d4 {[%clk 0:02:49.1]} 12... Ba6 {[%clk
0:02:23.6]} 13. Qe3 {[%clk 0:02:49.2]} 13... c5 {[%clk 0:02:22.9]} 14. Nf1
{[%clk 0:02:36.9]} 14... Bxf1 {[%clk 0:02:19.4]} 15. Rxf1 {[%clk 0:02:34.2]}
15... Nf8 {[%clk 0:02:19.6]} 16. h4 {[%clk 0:02:29.5]} 16... Nc6 {[%clk
0:02:15.8]} 17. Bd2 {[%clk 0:02:22.2]} 17... Na5 {[%clk 0:02:12.6]} 18. Qd3
{[%clk 0:02:13.9]} 18... Nc4 {[%clk 0:02:11.3]} 19. Rab1 {[%clk 0:02:06.7]}
19... Nxd2 {[%clk 0:02:06.2]} 20. Qxd2 {[%clk 0:02:04.9]} 20... Rac8 {[%clk
0:02:04.6]} 21. Rbc1 {[%clk 0:02:02.8]} 21... Qb7 {[%clk 0:01:49.3]} 22. Bb5
{[%clk 0:02:02.1]} 22... a6 {[%clk 0:01:48.7]} 23. Bd3 {[%clk 0:02:02.6]} 23...
b5 {[%clk 0:01:46.5]} 24. h5 {[%clk 0:01:52.5]} 24... h6 {[%clk 0:01:46.2]} 25.
Nh2 {[%clk 0:01:50.4]} 25... Qb6 {[%clk 0:01:37.5]} 26. Bb1 {[%clk 0:01:37.9]}
26... cxd4 {[%clk 0:01:26.2]} 27. cxd4 {[%clk 0:01:38.2]} 27... Rc4 {[%clk
0:01:26]} 28. Rcd1 {[%clk 0:01:31.9]} 28... Rdc8 {[%clk 0:01:22.7]} 29. Ng4
{[%clk 0:01:31]} 29... Bg5 {[%clk 0:01:16.6]} 30. f4 {[%clk 0:01:29.1]} 30...
Be7 {[%clk 0:01:16.7]} 31. Kh1 {[%clk 0:01:26.4]} 31... Qd8 {[%clk 0:01:15]} 32.
Qd3 {[%clk 0:01:17.4]} 32... Bb4 {[%clk 0:01:14.6]} 33. g3 {[%clk 0:01:11]}
33... Ba5 {[%clk 0:01:10.5]} 34. Ne3 {[%clk 0:01:03.4]} 34... R4c7 {[%clk
0:00:57]} 35. Kg2 {[%clk 0:01:02.5]} 35... Bb6 {[%clk 0:00:56.2]} 36. Qe2 {[%clk
0:00:54.6]} 36... Rc4 {[%clk 0:00:46.4]} 37. Nxc4 {[%clk 0:00:42.1]} 37... dxc4
{[%clk 0:00:46.7]} 38. Qe4 {[%clk 0:00:40.7]} 38... Qd5 {[%clk 0:00:39.8]} 39.
Qxd5 {[%clk 0:00:40.1]} 39... exd5 {[%clk 0:00:40.2]} 40. f5 {[%clk 0:00:40.6]}
40... b4 {[%clk 0:00:38.6]} 41. Rfe1 {[%clk 0:00:28]} 41... Rc6 {[%clk
0:00:32.8]} 42. g4 {[%clk 0:00:26.6]} 42... a5 {[%clk 0:00:29.4]} 43. Kf3 {[%clk
0:00:18.6]} 43... Bd8 {[%clk 0:00:29.5]} 44. b3 {[%clk 0:00:13.9]} 44... c3
{[%clk 0:00:26.7]} 45. Bd3 {[%clk 0:00:13.6]} 45... c2 {[%clk 0:00:19.5]} 46.
Rc1 {[%clk 0:00:12.7]} 46... Rc3 {[%clk 0:00:19.7]} 47. Ke2 {[%clk 0:00:12.7]}
47... Bb6 {[%clk 0:00:16.4]} 48. Rxc2 {[%clk 0:00:12.9]} 48... Bxd4 {[%clk
0:00:16.4]} 49. Rxc3 {[%clk 0:00:12.5]} 49... Bxc3 {[%clk 0:00:11.9]} 50. Rc1
{[%clk 0:00:11.4]} 50... Bxe5 {[%clk 0:00:11.3]} 51. Rc8 {[%clk 0:00:11]} 51...
Bc3 {[%clk 0:00:11.4]} 52. Bb5 {[%clk 0:00:10]} 52... g6 {[%clk 0:00:08.5]} 53.
fxg6 {[%clk 0:00:07.7]} 53... fxg6 {[%clk 0:00:08.9]} 54. hxg6 {[%clk
0:00:06.7]} 54... Kg7 {[%clk 0:00:08.1]} 55. Bd3 {[%clk 0:00:07.6]} 55... Nxg6
{[%clk 0:00:07.8]} 56. Rc7+ {[%clk 0:00:07.8]} 56... Kf6 {[%clk 0:00:07.7]} 57.
Rc6+ {[%clk 0:00:08.1]} 57... Ke5 {[%clk 0:00:07.2]} 58. Rxg6 {[%clk 0:00:08.7]}
58... Kf4 {[%clk 0:00:07.3]} 59. Rxh6 {[%clk 0:00:08.6]} 59... Kxg4 {[%clk
0:00:07.7]} 60. Ra6 {[%clk 0:00:08.3]} 60... d4 {[%clk 0:00:07.4]} 61. Rxa5
{[%clk 0:00:08.3]} 61... Kf4 {[%clk 0:00:07.9]} 62. Rf5+ {[%clk 0:00:07.9]}
62... Kg3 {[%clk 0:00:07.9]} 63. Rf3+ {[%clk 0:00:07.7]} 63... Kg4 {[%clk
0:00:08.2]} 64. Rf7 {[%clk 0:00:08.6]} 64... Kg3 {[%clk 0:00:08.2]} 65. Ra7
{[%clk 0:00:07.9]} 65... Kf4 {[%clk 0:00:08.3]} 66. a4 {[%clk 0:00:07.7]} 66...
bxa3 {[%clk 0:00:06.8]} 67. Rxa3 {[%clk 0:00:07.6]} 67... Ke5 {[%clk 0:00:07.5]}
68. Ra6 {[%clk 0:00:08]} 68... Kd5 {[%clk 0:00:07.6]} 69. Rg6 {[%clk 0:00:08.3]}
69... Kc5 {[%clk 0:00:08]} 70. Rg8 {[%clk 0:00:07.5]} 70... Kb4 {[%clk
0:00:08.3]} 71. Bc4 {[%clk 0:00:07.5]} 71... Ka3 {[%clk 0:00:08.2]} 72. Kd3
{[%clk 0:00:08]} 72... Kb2 {[%clk 0:00:08]} 73. Rg4 {[%clk 0:00:07.8]} 73... Ka3
{[%clk 0:00:07.8]} 74. Rxd4 {[%clk 0:00:07.5]} 74... Bxd4 {[%clk 0:00:07.6]} 75.
Kxd4 {[%clk 0:00:08.4]} 75... Kb4 {[%clk 0:00:08.1]} 76. Kd5 {[%clk 0:00:08.4]}
76... Ka5 {[%clk 0:00:08.3]} 77. Kd4 {[%clk 0:00:07.6]} 77... Kb4 {[%clk
0:00:08.5]} 78. Kd3 {[%clk 0:00:07.8]} 78... Ka5 {[%clk 0:00:05.9]} 79. Kc3
{[%clk 0:00:08]} 79... Kb6 {[%clk 0:00:06.3]} 80. Kb4 {[%clk 0:00:08.3]} 80...
Ka7 {[%clk 0:00:05.8]} 81. Ka5 {[%clk 0:00:07.8]} 81... Kb7 {[%clk 0:00:06.2]}
82. b4 {[%clk 0:00:08.3]} 82... Ka7 {[%clk 0:00:06.7]} 83. b5 {[%clk 0:00:08.8]}
83... Kb7 {[%clk 0:00:07.1]} 84. b6 {[%clk 0:00:09.4]} 84... Kb8 {[%clk
0:00:07.6]} 85. Ka6 {[%clk 0:00:09.5]} 85... Ka8 {[%clk 0:00:05.1]} 86. b7+
{[%clk 0:00:08.4]} 86... Kb8 {[%clk 0:00:05.8]} 87. Bd3 {[%clk 0:00:08.6]} 1-0